bitfinex/quotes_SOLUSD_20260108
["timestamp","ask_amount","ask_price","bid_price","bid_amount"]
[1767834702889,0.6647226,137.1,137.06,7.99861071]
[1767834703199,3.24531561,137.1,137.06,7.99861071]
[1767834705009,0.6647226,137.1,137.06,10.57920372]
[1767834706407,0.6647226,137.1,137.06,7.99861071]
[1767834707100,3.24531561,137.1,137.06,7.99861071]
[1767834708209,0.27401803,137.09,137.06,0.70279724]
[1767834708508,0.66081555,137.08,137.05,0.70279724]
[1767834708717,3.24140856,137.08,137.04,7.99967506]
[1767834708916,2.85847902,137.07,137.04,0.70279724]
[1767834709217,3.23757926,137.06,137.03,0.70279724]
[1767834709505,7.29564026,137.07,137.02,8.00085255]
[1767834709506,2.86227002,137.05,137.02,8.00085255]
[1767834710005,2.58059301,137.05,137.02,8.00085255]
[1767834710587,4.03022777,137.05,137.02,8.00085255]
[1767834710987,4.03022777,137.05,137.03,0.70279724]
[1767834711293,4.69495037,137.06,137.03,0.70279724]
[1767834711893,4.69495037,137.06,137.02,8.00085255]
[1767834712819,0.27401803,137.05,137.02,0.70279724]
[1767834712994,4.69104332,137.04,137.01,8.00139226]
[1767834717510,4.69104332,137.04,137.01,0.70279724]
[1767834722622,0.66081555,137.04,137.01,0.70279724]
[1767834723933,24.64665939,137.06,137.03,0.7221691]
[1767834724230,24.88159581,137.06,137.03,0.7221691]
[1767834724709,24.88159581,137.06,137.02,0.7221691]
[1767834724902,0.69950634,137.05,137.02,0.7221691]
[1767834728440,4.72973411,137.05,137.02,0.7221691]
[1767834728642,4.72973411,137.05,137.02,8.02035953]
[1767834728930,4.72973411,137.05,137.02,0.7221691]
[1767834729730,12.02641219,137.05,137.02,0.7221691]
[1767834730128,0.23958212,137.04,137.01,8.02066409]
[1767834730711,0.70419897,137.05,137.02,0.7221691]
[1767834730909,4.73442674,137.05,137.02,0.7221691]
[1767834732936,0.23493642,137.04,137.0,12.05166694]
[1767834734331,0.23493642,137.04,137.0,8.02143917]
[1767834735732,0.23493642,137.04,137.01,0.7221691]
[1767834739140,0.23493642,137.04,137.01,8.02084837]
[1767834741045,4.73442674,137.05,137.02,0.7221691]
[1767834744250,0.70419897,137.05,137.02,0.7221691]
[1767834745150,12.03022967,137.07,137.03,0.7221691]
[1767834749148,12.03022967,137.07,137.03,4.75239687]
[1767834749349,8.0000019,137.07,137.03,4.75239687]
[1767834749527,12.03022967,137.07,137.04,0.7221691]
[1767834750346,4.73442674,137.07,137.04,0.7221691]
[1767834752845,4.03022777,137.07,137.04,0.7221691]
[1767834757952,25.33363561,137.08,137.05,0.69515244]
[1767834758159,24.6452954,137.08,137.05,0.69515244]
[1767834758962,11.3252954,137.08,137.05,0.69515244]
[1767834759442,4.03022777,137.08,137.06,0.69515244]
[1767834759637,4.03022777,137.08,137.05,7.29654775]
[1767834759638,0.68396318,137.07,137.05,7.29654775]
[1767834760544,0.68396318,137.07,137.04,7.29693531]
[1767834761060,4.03022777,137.07,137.04,0.69515244]
[1767834761242,8.68415269,137.06,137.04,0.69515244]
[1767834761434,4.03022777,137.05,137.03,0.69515244]
[1767834762951,4.28519762,137.06,137.03,0.69515244]
[1767834764865,4.03022777,137.05,137.03,0.69515244]
[1767834769561,7.55110163,137.06,137.03,0.69515244]
[1767834769871,8.68653676,137.05,137.03,0.69515244]
[1767834770080,4.03022777,137.05,137.03,0.69515244]
[1767834772585,2.57939939,137.05,137.03,0.69515244]
[1767834776791,21.30415417,137.07,137.03,0.69515244]
[1767834776974,4.65650452,137.06,137.03,0.69515244]
[1767834777174,4.65650452,137.05,137.03,0.69515244]
[1767834777368,2.5493994,137.04,137.02,0.69515244]
[1767834777590,3.26336257,137.05,137.02,0.69515244]
[1767834778392,2.57939939,137.03,137.01,0.69515244]
[1767834778565,2.57939939,137.02,137.01,0.69515244]
[1767834778867,2.57939939,137.03,137.01,0.69515244]
[1767834779469,2.83861627,137.02,136.99,0.69515244]
[1767834779672,2.57939939,137.01,136.99,0.69515244]
[1767834779864,2.57939939,137.01,136.97,2.57939939]
[1767834779865,3.25486808,137.01,136.98,0.69515244]
[1767834780083,2.57939939,137.01,136.98,0.69515244]
[1767834780280,2.57939939,137.01,136.98,7.99539815]
[1767834780486,2.83003598,137.01,136.98,0.69515244]
[1767834780986,10.12880496,137.01,136.98,0.69515244]
[1767834781181,2.83003598,137.01,136.98,0.69515244]
[1767834782285,3.26336257,137.0,136.97,7.9862642]
[1767834782487,2.80436925,136.99,136.96,7.98654103]
[1767834783195,2.57939939,136.99,136.95,7.30187198]
[1767834783392,2.57939939,136.98,136.95,7.98741422]
[1767834783688,2.57939939,136.97,136.95,0.68554224]
[1767834783895,2.57939939,136.97,136.93,7.98837853]
[1767834784081,38.86558766,137.01,136.92,0.14216157]
[1767834784082,2.57939939,136.95,136.92,0.68554224]
[1767834784393,2.57939939,136.95,136.92,7.98876264]
[1767834785197,2.57939939,136.95,136.93,0.68554224]
[1767834785893,2.57939939,136.96,136.93,0.68554224]
[1767834787470,13.32,136.98,136.94,0.68554224]
[1767834787674,103.0,137.05,136.95,0.68554224]
[1767834787675,15.89939939,136.99,136.95,0.68554224]
[1767834788371,16.09394467,136.99,136.95,0.68554224]
[1767834788572,15.89939939,136.99,136.95,0.68554224]
[1767834789696,16.09394467,136.99,136.96,0.68554224]
[1767834789866,0.49090789,136.99,136.95,7.30178858]
[1767834790071,0.71499811,137.05,136.98,2.57939939]
[1767834790296,0.71499811,137.05,137.01,2.57939939]
[1767834791695,0.71499811,137.05,137.01,9.87785367]
[1767834792488,0.71499811,137.05,137.01,7.29845428]
[1767834792797,0.71499811,137.05,137.02,2.57939939]
[1767834793270,8.01171455,137.05,137.02,2.57939939]
[1767834794100,2.57939939,137.06,137.03,2.57939939]
[1767834794101,0.71499811,137.06,137.03,2.57939939]
[1767834794279,0.71499811,137.06,137.04,2.57939939]
[1767834798090,8.01003796,137.08,137.05,2.57939939]
[1767834798493,0.71499811,137.07,137.05,2.57939939]
[1767834798782,0.71499811,137.07,137.04,2.57939939]
[1767834799193,0.71499811,137.07,137.05,2.57939939]
[1767834800710,0.71499811,137.07,137.04,2.57939939]
[1767834802604,2.57939939,137.09,137.05,2.57939939]
[1767834802605,0.71499811,137.09,137.05,2.57939939]
[1767834803286,8.00952292,137.09,137.05,2.57939939]
[1767834803487,0.71499811,137.08,137.06,2.57939939]
[1767834805705,18.23293927,137.12,137.08,0.68554224]
[1767834805706,7.29323256,137.12,137.08,0.68554224]
[1767834805891,7.29323256,137.12,137.09,2.57939939]
[1767834806086,0.1,137.15,137.1,2.57939939]
[1767834806087,2.67939939,137.15,137.1,2.57939939]
[1767834806299,4.57628576,137.14,137.1,2.57939939]
[1767834806607,2.67939939,137.15,137.1,2.57939939]
[1767834807190,7.29200632,137.14,137.1,2.57939939]
[1767834807512,2.57939939,137.13,137.08,2.57939939]
[1767834807692,0.71499811,137.12,137.08,2.57939939]
[1767834807891,0.71499811,137.12,137.08,0.68554224]
[1767834807892,3.2943975,137.12,137.08,0.68554224]
[1767834808910,0.11880374,137.11,137.08,0.68554224]
[1767834811213,10.58728707,137.12,137.08,0.68554224]
[1767834812489,2.69820313,137.11,137.08,0.68554224]
[1767834813103,2.69820313,137.11,137.06,7.29582905]
[1767834813305,0.70662632,137.1,137.06,8.0087263]
[1767834813714,0.70662632,137.1,137.07,0.71289725]
[1767834814507,2.57939939,137.11,137.07,8.00834347]
[1767834814508,3.28602571,137.11,137.07,8.00834347]
[1767834815517,0.70662632,137.11,137.07,8.00834347]
[1767834817206,2.78602571,137.11,137.08,0.71289725]
[1767834818297,10.07948739,137.11,137.08,0.71289725]
[1767834818498,18.32848107,137.15,137.08,0.71289725]
[1767834818719,2.57939939,137.13,137.09,0.71289725]
[1767834819410,0.099,137.13,137.1,0.71289725]
[1767834820307,0.1,137.15,137.11,0.71289725]
[1767834820715,2.67939939,137.15,137.11,0.71289725]
[1767834821220,2.57939939,137.14,137.11,0.71289725]
[1767834821410,2.57939939,137.13,137.11,0.71289725]
[1767834824016,9.87190794,137.13,137.11,0.71289725]
[1767834826626,25.85517569,137.15,137.11,0.71289725]
[1767834826832,2.57939939,137.13,137.11,0.71289725]
[1767834828909,9.8717544,137.13,137.11,0.71289725]
[1767834829109,7.29235501,137.13,137.11,0.71289725]
[1767834829331,9.8717544,137.13,137.11,0.71289725]
[1767834830523,7.29235501,137.13,137.11,0.71289725]
[1767834830831,9.8717544,137.13,137.11,0.71289725]
[1767834831850,0.70576827,137.11,136.89,0.2]
[1767834832013,2.57939939,136.94,136.93,2.08112397]
[1767834832329,2.57939939,136.94,136.89,0.2]
[1767834832330,2.08112397,136.91,136.89,0.2]
[1767834832635,2.08112397,136.91,136.88,0.2]
[1767834832636,0.2,136.89,136.88,0.2]
[1767834832930,4.72684573,136.92,136.87,0.2]
[1767834833132,4.03917068,136.91,136.87,0.2]
[1767834833648,4.03917068,136.91,136.87,7.50608403]
[1767834833812,4.03917068,136.91,136.87,0.71289725]
[1767834834334,0.70662632,136.96,136.9,0.71289725]
[1767834834513,4.03917068,136.94,136.89,4.03917068]
[1767834835112,13.32,136.95,136.9,11.34377257]
[1767834835113,17.35917068,136.95,136.9,11.34377257]
[1767834835816,4.03917068,136.94,136.9,7.30460189]
[1767834836016,4.03917068,136.94,136.89,4.03917068]
[1767834836632,4.03917068,136.94,136.9,0.71289725]
[1767834836825,18.065797,136.95,136.9,4.75206793]
[1767834837416,18.065797,136.95,136.9,12.05631812]
[1767834838049,25.0739939,136.98,136.93,4.75206793]
[1767834838050,0.70662632,136.98,136.93,4.75206793]
[1767834838220,4.745797,136.98,136.93,4.75206793]
[1767834838535,0.70662632,136.98,136.94,4.03917068]
[1767834838926,0.70662632,137.0,136.96,4.03917068]
[1767834839127,0.70662632,137.0,136.95,4.03917068]
[1767834839724,0.70662632,136.99,136.95,4.03917068]
[1767834839920,0.70662632,136.99,136.95,4.75206793]
[1767834840624,12.04520068,137.0,136.95,12.05392046]
[1767834841025,8.00603,137.0,136.96,0.71289725]
[1767834841325,24.65800593,137.01,136.97,0.71289725]
[1767834841936,25.35534228,137.01,136.97,0.71289725]
[1767834842240,4.03917068,137.0,136.96,0.68836996]
[1767834842429,4.72837256,137.0,136.96,0.68836996]
[1767834844042,0.68920188,137.0,136.97,7.3008566]
[1767834846450,0.68920188,137.0,136.96,7.98969552]
[1767834850227,17.35917068,137.01,136.97,8.01332369]
[1767834850428,17.35917068,137.01,136.97,0.7124814]
[1767834850628,18.04837256,137.01,136.97,0.7124814]
[1767834851746,11.33749319,137.02,136.98,0.7124814]
[1767834851932,12.02669507,137.02,136.98,0.7124814]
[1767834853751,4.72837256,137.0,136.96,0.7124814]
[1767834857051,0.68920188,136.98,136.95,0.7124814]
[1767834857439,0.68920188,136.98,136.92,80.30029679]
[1767834857440,4.03917068,136.97,136.93,8.01507792]
[1767834857634,4.72837256,136.98,136.94,0.7124814]
[1767834859063,7.98935522,136.99,136.95,0.7124814]
[1767834859355,12.0285259,136.99,136.95,0.7124814]
[1767834859543,0.68920188,136.98,136.95,0.7124814]
[1767834859852,4.48374526,136.95,136.91,0.7124814]
[1767834860055,4.03917068,136.93,136.91,0.7124814]
[1767834860259,0.44457458,136.95,136.91,0.7124814]
[1767834860260,4.03917068,136.94,136.91,0.7124814]
[1767834860564,4.48374526,136.95,136.91,0.7124814]
[1767834860756,0.44457458,136.95,136.91,0.7124814]
[1767834860940,7.74678942,136.95,136.91,0.7124814]
[1767834861433,7.74678942,136.95,136.91,4.75165208]
[1767834862238,7.74678942,136.95,136.92,4.03917068]
[1767834863062,7.74678942,136.95,136.91,4.75165208]
[1767834864160,0.68430959,136.94,136.91,4.03917068]
[1767834864340,0.68430959,136.94,136.9,0.7124814]
[1767834865558,7.98681696,136.94,136.9,0.7124814]
[1767834865755,12.02598764,136.94,136.9,0.7124814]
[1767834866064,7.98681696,136.94,136.9,0.7124814]
[1767834866265,12.02598764,136.94,136.9,0.7124814]
[1767834866756,7.98681696,136.94,136.9,0.7124814]
[1767834870555,0.44697193,136.93,136.9,0.7124814]
[1767834870865,0.44697193,136.93,136.9,8.01706093]
[1767834874359,0.71036208,136.94,136.91,0.7201036]
[1767834874867,4.74953276,136.94,136.91,0.7201036]
[1767834875269,5.03195062,136.93,136.91,0.7201036]
[1767834875470,4.74953276,136.94,136.91,0.7201036]
[1767834875667,5.03195295,136.93,136.91,0.7201036]
[1767834875972,4.74953276,136.94,136.91,0.7201036]
[1767834876163,5.03195295,136.93,136.91,0.7201036]
[1767834876364,5.04208206,136.92,136.91,0.7201036]
[1767834883980,5.04208206,136.92,136.9,8.02468313]
[1767834884164,0.42117996,136.93,136.9,8.02468313]
[1767834884480,0.71036208,136.95,136.92,0.7201036]
[1767834884671,0.71036208,136.95,136.92,8.02360177]
[1767834885256,4.74953276,136.97,136.93,0.7201036]
[1767834887063,4.03917068,136.96,136.93,0.7201036]
[1767834887460,12.05054364,136.97,136.93,0.7201036]
[1767834889171,4.03917068,136.98,136.94,0.7201036]
[1767834889375,18.08953276,136.99,136.94,0.7201036]
[1767834890161,0.71036208,136.98,136.94,0.7201036]
[1767834890483,4.74953276,136.98,136.95,0.7201036]
[1767834890788,0.71036208,136.98,136.95,0.7201036]
[1767834891969,14.05036208,136.99,136.95,8.02180819]
[1767834892170,14.05036208,136.99,136.96,0.7201036]
[1767834892671,0.71036208,137.01,136.97,0.7201036]
[1767834893781,0.71036208,137.01,136.97,8.02066984]
[1767834893983,0.71036208,137.01,136.98,0.7201036]
[1767834894588,16.63103777,137.02,136.98,0.7201036]
[1767834894891,14.05036208,137.02,136.98,0.7201036]
[1767834895591,16.63103777,137.02,136.98,0.7201036]
[1767834895770,3.29103777,137.02,136.98,0.7201036]
[1767834896694,3.29103777,137.02,136.98,8.02032261]
[1767834898073,0.71036208,137.02,136.98,8.02032261]
[1767834898287,3.29103777,137.02,136.98,8.02032261]
[1767834900801,0.71036208,136.98,136.94,8.0223211]
[1767834900972,0.71036208,136.97,136.94,8.0223211]
[1767834901295,0.71036208,136.97,136.94,0.7201036]
[1767834901296,3.29103777,136.97,136.94,0.7201036]
[1767834901592,3.29103777,136.96,136.93,7.30277523]
[1767834901777,3.29103777,136.96,136.93,8.02287883]
[1767834903193,3.29103777,136.96,136.93,0.7201036]
[1767834903393,3.29103777,136.96,136.92,7.9734213]
[1767834903591,3.29103777,136.96,136.93,7.30298606]
[1767834904088,3.29103777,136.96,136.92,7.97340868]
[1767834904279,3.29103777,136.96,136.93,0.67013718]
[1767834906093,3.29103777,136.96,136.93,7.97313364]
[1767834908774,2.58067569,136.96,136.94,0.67013718]
[1767834909901,3.30294014,136.96,136.93,7.97313364]
[1767834911104,3.30294014,136.96,136.93,0.67013718]
[1767834911880,0.71916285,136.93,136.88,7.97550163]
[1767834912079,21.36419946,136.95,136.88,0.67013718]
[1767834912080,0.41517539,136.91,136.88,0.67013718]
[1767834912278,2.58067569,136.92,136.88,7.97577062]
[1767834913282,2.58067569,136.92,136.89,0.67013718]
[1767834915590,2.58067569,136.93,136.89,0.67013718]
[1767834915785,9.88349632,136.94,136.9,0.67013718]
[1767834916787,0.72226445,136.93,136.9,0.67013718]
[1767834917599,3.30294014,136.93,136.9,0.67013718]
[1767834918102,3.30294014,136.92,136.88,0.67013718]
[1767834918706,0.72226445,136.9,136.87,7.97592091]
[1767834919711,0.69226443,136.9,136.87,7.97592091]
[1767834921289,0.69226443,136.9,136.87,7.30578373]
[1767834921685,3.27294012,136.9,136.86,7.97666182]
[1767834922010,3.27294012,136.9,136.85,34.3302911]
[1767834922011,3.30294014,136.89,136.85,14.01013718]
[1767834922198,2.58067569,136.89,136.85,14.01013718]
[1767834922399,3.30294014,136.89,136.86,0.67013718]
[1767834925121,3.30294014,136.89,136.86,7.97685048]
[1767834925619,2.58067569,136.88,136.86,7.97685048]
[1767834926409,3.30294014,136.88,136.85,0.67013718]
[1767834930713,3.30294014,136.87,136.84,0.67013718]
[1767834930894,2.58067569,136.86,136.84,0.67013718]
[1767834931092,2.55067568,136.86,136.84,0.67013718]
[1767834932809,3.2613073,136.86,136.83,7.9979586]
[1767834933511,3.23130727,136.86,136.83,7.9979586]
[1767834935414,2.52067565,136.86,136.84,0.68982553]
[1767834935611,2.52067565,136.86,136.83,7.30813307]
[1767834935816,3.23130727,136.86,136.83,7.9979586]
[1767834936001,0.71063162,136.85,136.82,7.99847563]
[1767834936203,0.6806316,136.85,136.82,7.99847563]
[1767834936919,3.26130729,136.85,136.82,7.99847563]
[1767834940003,3.23130729,136.85,136.82,7.99847563]
[1767834942724,0.71063162,136.86,136.83,0.68982553]
[1767834942928,3.29130731,136.87,136.83,0.68982553]
[1767834943714,3.29130731,136.87,136.83,7.99764229]
[1767834944400,0.71063162,136.87,136.84,0.68982553]
[1767834945522,3.29130731,136.88,136.85,7.99709626]
[1767834950535,0.71063162,136.89,136.86,0.68982553]
[1767834951432,0.71063162,136.91,136.87,0.68982553]
[1767834951632,0.71063162,136.9,136.87,0.68982553]
[1767834952536,0.71063162,136.9,136.87,7.99567178]
[1767834953033,3.29130731,136.9,136.87,7.30584625]
[1767834954717,4.7497168,136.9,136.87,7.30584625]
[1767834957336,0.71063162,136.89,136.87,7.30584625]
[1767834962244,0.70831788,136.88,136.86,7.30646876]
[1767834963832,0.70831788,136.88,136.86,7.98584463]
[1767834964139,0.72336938,136.89,136.86,7.98584463]
[1767834966242,5.0667955,136.89,136.86,7.98584463]
[1767834969126,5.0667955,136.89,136.86,12.02492981]
[1767834969327,0.72336938,136.89,136.86,12.02492981]
[1767834969532,0.72336938,136.89,136.86,30.29177183]
[1767834969851,0.72336938,136.89,136.87,0.67937587]
[1767834970026,0.72336938,136.9,136.87,0.67937587]
[1767834970749,0.72336938,136.9,136.86,30.29177183]
[1767834973732,0.72336938,136.9,136.86,7.98584463]
[1767834976428,0.72336938,136.89,136.85,7.98643189]
[1767834976749,0.72336938,136.89,136.86,7.30667548]
[1767834977746,0.72336938,136.88,136.85,7.30697603]
[1767834978043,0.72336938,136.85,136.82,0.67937587]
[1767834978256,9.04101408,136.85,136.82,0.67937587]
[1767834978432,0.72336938,136.85,136.82,0.67937587]
[1767834978753,4.76245456,136.85,136.82,0.67937587]
[1767834978957,0.72336938,136.83,136.81,0.2]
[1767834982747,0.72336938,136.81,136.78,0.2]
[1767834982962,0.72336938,136.8,136.78,0.2]
[1767834983153,4.76245456,136.81,136.78,0.87937587]
[1767834983462,0.72336938,136.81,136.78,8.1902484]
[1767834984164,0.72336938,136.8,136.78,0.87937587]
[1767834985863,0.72336938,136.8,136.78,0.2]
[1767834987236,0.6409527,136.79,136.77,0.2]
[1767834987554,12.07243263,136.8,136.77,0.87937587]
[1767834988068,4.76245456,136.8,136.77,0.87937587]
[1767834988481,4.03908518,136.79,136.77,0.2]
[1767834988787,4.68003788,136.79,136.77,0.2]
[1767834989250,0.6409527,136.79,136.77,0.2]
[1767834990752,4.68003788,136.79,136.77,0.2]
[1767834990967,0.6409527,136.79,136.77,0.2]
[1767834991165,14.06336938,136.81,136.78,0.67937587]
[1767834991356,0.6409527,136.8,136.77,0.87937587]
[1767834991759,0.6409527,136.8,136.77,8.19086981]
[1767834992070,18.10245456,136.81,136.78,0.67937587]
[1767834992455,18.10245456,136.81,136.78,0.61937588]
[1767834992657,0.65806354,136.78,136.77,0.2]
[1767834992886,4.69714872,136.79,136.77,0.2]
[1767834994181,0.56700547,136.77,136.74,0.2]
[1767834994369,8.07817036,136.78,136.74,0.2]
[1767834994370,4.03908518,136.75,136.74,0.2]
[1767834994586,4.69714872,136.77,136.74,0.2]
[1767834994776,0.65806354,136.77,136.74,8.20578913]
[1767834995089,18.03714872,136.78,136.75,0.69272181]
[1767834996079,25.34817979,136.78,136.75,0.69272181]
[1767834997881,4.40809065,136.77,136.74,0.89272181]
[1767834998392,4.40809065,136.77,136.74,8.20584945]
[1767834998570,13.34,136.78,136.75,0.69272181]
[1767834998971,25.0591011,136.78,136.75,0.69272181]
[1767834999173,4.03908518,136.77,136.75,0.69272181]
[1767834999372,4.03908518,136.76,136.74,0.89272181]
[1767834999679,21.02001592,136.78,136.72,0.2]
[1767834999680,4.40809065,136.75,136.72,0.2]
[1767834999874,17.37908518,136.74,136.72,0.89272181]
[1767835000978,13.34,136.74,136.72,0.89272181]
[1767835001173,17.37908518,136.74,136.72,0.89272181]
[1767835001892,13.34,136.74,136.72,0.89272181]
[1767835002481,7.96983214,136.77,136.73,0.69272181]
[1767835002685,17.37908518,136.76,136.73,0.69272181]
[1767835003096,13.99806354,136.76,136.73,0.69272181]
[1767835003302,18.03714872,136.76,136.73,0.69272181]
[1767835004106,4.03908518,136.74,136.72,0.89272181]
[1767835004282,4.03908518,136.73,136.72,0.2]
[1767835004480,4.21491252,136.73,136.71,0.2]
[1767835004678,4.03908518,136.72,136.71,0.2]
[1767835004878,4.00908518,136.72,136.71,0.2]
[1767835005198,4.65750449,136.72,136.71,0.01762297]
[1767835005599,4.58750449,136.71,136.69,0.2]
[1767835005897,4.55750447,136.71,136.69,0.2]
[1767835008487,4.03908518,136.72,136.69,0.2]
[1767835008698,4.13808518,136.72,136.69,0.2]
[1767835008999,0.51841929,136.73,136.69,8.2082499]
[1767835009196,25.23073917,136.74,136.7,0.69272181]
[1767835009499,0.099,136.73,136.7,0.69272181]
[1767835010291,4.13808518,136.73,136.7,0.69272181]
[1767835010788,4.03908518,136.73,136.71,0.69272181]
[1767835010988,25.23029247,136.75,136.71,0.69272181]
[1767835011890,17.91750447,136.75,136.71,0.69272181]
[1767835013005,13.87841929,136.75,136.71,12.04627887]
[1767835013307,13.36,136.75,136.72,0.69272181]
[1767835014906,20.67265604,136.75,136.72,0.69272181]
[1767835015404,13.36,136.75,136.72,0.69272181]
[1767835016999,20.67272587,136.75,136.72,0.69272181]
[1767835017205,13.36,136.75,136.72,0.69272181]
[1767835020184,15.95039177,136.75,136.72,0.69272181]
[1767835021701,0.51841929,136.76,136.73,0.69272181]
[1767835021889,10.42102778,136.76,136.72,0.65963318]
[1767835022295,2.59039177,136.75,136.72,0.65963318]
[1767835022601,2.59039177,136.73,136.71,0.67626722]
[1767835022797,2.59039177,136.73,136.7,7.31502531]
[1767835022798,2.69354402,136.73,136.7,0.67626722]
[1767835022989,2.69354402,136.73,136.69,0.87626722]
[1767835023301,2.59039177,136.72,136.69,0.87626722]
[1767835025402,10.00737335,136.73,136.69,8.19205862]
[1767835025584,2.69354402,136.73,136.69,8.19205862]
[1767835025788,2.69354402,136.73,136.69,0.87626722]
[1767835025789,0.51011436,136.72,136.69,0.87626722]
[1767835025997,2.69761365,136.71,136.69,0.2]
[1767835026709,2.59039177,136.71,136.69,0.2]
[1767835028003,21.19180294,136.74,136.7,0.67626722]
[1767835028196,23.78219471,136.74,136.7,0.67626722]
[1767835028391,2.68939177,136.73,136.7,0.67626722]
[1767835028893,2.68939177,136.73,136.69,0.87626722]
[1767835029614,2.68939177,136.73,136.69,8.19205494]
[1767835030407,2.59039177,136.72,136.69,8.19205494]
[1767835030611,2.68939177,136.73,136.69,8.19205494]
[1767835032212,0.099,136.73,136.69,8.19205494]
[1767835032413,2.68939177,136.73,136.69,8.19205494]
[1767835032918,0.51422509,136.72,136.69,8.19205494]
[1767835036924,3.10881106,136.73,136.69,8.19205494]
[1767835037622,0.51841929,136.73,136.7,0.67626722]
[1767835039027,16.46461686,136.75,136.71,0.67626722]
[1767835039225,4.54019312,136.74,136.71,0.67626722]
[1767835039423,16.46461686,136.75,136.71,0.67626722]
[1767835039621,7.13076947,136.74,136.71,7.99097653]
[1767835039922,0.51011436,136.73,136.7,7.3150825]
[1767835040130,2.59039177,136.73,136.7,7.99134972]
[1767835041412,2.59039177,136.73,136.7,0.67626722]
[1767835043036,2.68939177,136.73,136.7,0.67626722]
[1767835043336,0.51422509,136.72,136.69,0.87626722]
[1767835043845,3.10461686,136.72,136.69,0.87626722]
[1767835045325,2.59039177,136.72,136.69,8.19203365]
[1767835045519,2.68939177,136.72,136.69,8.19203365]
[1767835046030,2.59039177,136.72,136.69,8.19203365]
[1767835049049,2.59039177,136.72,136.69,0.87626722]
[1767835050737,2.68939177,136.72,136.69,0.2]
[1767835051540,2.59039177,136.71,136.69,0.2]
[1767835052330,2.69354402,136.7,136.67,0.2]
[1767835052530,2.59039177,136.68,136.67,0.2]
[1767835052736,2.59039177,136.69,136.67,0.2]
[1767835052920,7.83348986,136.71,136.67,8.19008826]
[1767835053224,3.10881106,136.71,136.68,0.67325123]
[1767835056438,2.59039177,136.71,136.68,0.67325123]
[1767835057246,2.59039177,136.73,136.69,0.67325123]
[1767835057545,0.51841929,136.75,136.7,0.67325123]
[1767835057546,3.10881106,136.75,136.7,0.67325123]
[1767835057738,4.53358615,136.74,136.71,0.67325123]
[1767835057946,3.10881106,136.75,136.71,0.67325123]
[1767835058141,4.53356859,136.74,136.71,0.67325123]
[1767835058449,3.10881106,136.75,136.71,7.98790565]
[1767835058649,4.53340385,136.74,136.71,7.98790565]
[1767835058867,3.10881106,136.75,136.71,7.98790565]
[1767835059054,4.53332054,136.74,136.71,7.98790565]
[1767835059235,3.10881106,136.75,136.71,7.98790565]
[1767835059645,2.59039177,136.75,136.72,0.67325123]
[1767835061356,2.68939177,136.75,136.72,0.67325123]
[1767835061942,2.59039177,136.74,136.72,0.67325123]
[1767835067362,0.099,136.75,136.72,0.67325123]
[1767835067561,7.12486015,136.74,136.72,0.67325123]
[1767835067741,2.59039177,136.74,136.72,0.67325123]
[1767835070157,9.90359113,136.74,136.72,0.67325123]
[1767835070364,2.59039177,136.73,136.7,0.67325123]
[1767835073751,2.59039177,136.73,136.71,0.67325123]
[1767835074553,4.56311734,136.74,136.71,0.67325123]
[1767835074753,4.53435351,136.73,136.71,0.67325123]
[1767835075049,4.56311734,136.74,136.71,0.67325123]
[1767835075250,4.53435118,136.73,136.71,0.67325123]
[1767835075546,4.56311734,136.74,136.71,0.67325123]
[1767835076380,0.51422509,136.74,136.71,0.67325123]
[1767835076552,4.56311734,136.74,136.71,0.67325123]
[1767835078274,4.53409518,136.73,136.71,0.67325123]
[1767835078453,4.56311734,136.74,136.71,0.67325123]
[1767835079170,11.87636367,136.74,136.71,0.67325123]
[1767835079376,7.82747142,136.74,136.71,0.67325123]
[1767835079562,4.04889225,136.73,136.71,0.67325123]
[1767835080871,0.51422509,136.74,136.71,0.67325123]
[1767835081257,4.56311734,136.74,136.71,0.67325123]
[1767835081577,11.8763254,136.74,136.71,0.67325123]
[1767835090191,0.51841929,136.8,136.74,0.68158091]
[1767835090371,0.51011436,136.78,136.75,0.68158091]
[1767835090882,4.56731154,136.79,136.75,0.68158091]
[1767835091083,4.52437947,136.78,136.75,0.68158091]
[1767835091285,4.56731154,136.79,136.75,0.68158091]
[1767835091586,11.87787561,136.79,136.75,0.68158091]
[1767835093470,11.87787561,136.79,136.75,7.99404453]
[1767835093878,0.099,136.78,136.75,7.99404453]
[1767835095165,4.14789225,136.78,136.75,0.68158091]
[1767835095367,4.56311734,136.77,136.74,0.68158091]
[1767835096367,0.51422509,136.77,136.74,0.68158091]
[1767835096567,4.56311734,136.77,136.74,0.68158091]
[1767835098586,11.87878,136.78,136.75,0.68158091]
[1767835098779,11.87878,136.78,136.74,7.31313662]
[1767835098780,11.87878,136.78,136.74,0.68158091]
[1767835100696,4.04889225,136.77,136.74,0.68158091]
[1767835101397,7.82988775,136.78,136.74,0.68158091]
[1767835101597,11.87878,136.78,136.74,0.68158091]
[1767835104899,0.51841929,136.78,136.74,0.68158091]
[1767835105105,7.30913416,136.82,136.78,0.68158091]